bitfinex/quotes_ETHUSD_20251117
["timestamp","ask_amount","ask_price","bid_price","bid_amount"]
[1763364777926,0.002,3198.8,3198.6,0.4928]
[1763364778090,0.870504,3198.7,3198.6,0.001]
[1763364780327,0.405504,3198.7,3198.6,0.001]
[1763364780532,0.870504,3198.7,3198.6,0.001]
[1763364781329,0.405504,3198.7,3198.6,0.001]
[1763364781506,1.20762848,3198.7,3198.6,0.001]
[1763364782331,0.80212448,3198.7,3198.6,0.001]
[1763364782494,1.67262848,3198.7,3198.6,0.001]
[1763364782700,2.15592848,3198.7,3198.6,0.001]
[1763364784009,1.67262848,3198.7,3198.6,0.001]
[1763364784209,0.405504,3198.7,3198.6,0.4928]
[1763364784408,0.002,3198.8,3198.6,0.9732]
[1763364784608,0.002,3198.8,3198.7,0.4918]
[1763364784834,0.002,3198.8,3198.7,0.9722]
[1763364786345,0.002,3198.8,3198.7,0.4918]
[1763364788142,0.002,3198.8,3198.7,0.9722]
[1763364788346,0.002,3198.8,3198.7,0.4918]
[1763364788552,0.002,3198.8,3198.7,0.9722]
[1763364789944,0.002,3198.8,3198.6,0.001]
[1763364790149,0.002,3198.8,3198.7,0.4918]
[1763364790844,0.002,3198.8,3198.7,0.9722]
[1763364795050,0.002,3198.8,3198.7,1.47710873]
[1763364803046,0.002,3198.8,3198.7,0.9722]
[1763364803557,0.002,3199.2,3198.7,0.9722]
[1763364803882,0.002,3199.2,3199.1,0.5579]
[1763364804297,0.002,3199.2,3199.1,1.0237]
[1763364804590,0.4758,3199.2,3198.6,0.001]
[1763364805406,0.9697,3199.2,3198.6,0.001]
[1763364805546,0.3084,3198.7,3198.6,0.001]
[1763364805751,0.4959,3199.2,3198.6,0.001]
[1763364805752,0.4939,3199.1,3198.6,0.001]
[1763364805964,0.4939,3199.1,3198.6,0.4678]
[1763364806362,0.002,3199.2,3198.6,0.9336]
[1763364806566,0.4959,3199.2,3198.6,0.4678]
[1763364808864,0.002,3199.2,3198.6,0.9336]
[1763364809053,0.4738,3198.7,3198.6,0.001]
[1763364809693,0.4939,3198.9,3198.6,0.001]
[1763364809870,0.002,3199.2,3198.6,0.001]
[1763364810073,0.4939,3199.1,3198.6,0.001]
[1763364810260,0.4738,3198.7,3198.6,0.001]
[1763364810591,1.373204,3198.7,3198.6,0.001]
[1763364812391,2.04779687,3198.7,3198.6,0.001]
[1763364812696,2.36615064,3198.7,3198.6,0.001]
[1763364815973,1.19765777,3198.7,3198.6,0.001]
[1763364816297,0.879304,3198.7,3198.6,0.001]
[1763364816716,1.373204,3198.7,3198.6,0.001]
[1763364817396,0.879304,3198.7,3198.6,0.001]
[1763364818728,0.002,3198.8,3198.6,0.4678]
[1763364818933,0.002,3198.8,3198.7,0.4668]
[1763364819135,0.002,3198.8,3198.7,0.9326]
[1763364820849,0.002,3198.8,3198.7,0.4668]
[1763364821161,0.002,3198.8,3198.7,5.19560672]
[1763364821325,0.002,3198.8,3198.7,1.45236067]
[1763364821525,0.002,3198.8,3198.7,0.4668]
[1763364822663,0.002,3198.8,3198.6,0.001]
[1763364822847,0.4758,3198.8,3198.6,0.001]
[1763364823158,0.002,3198.8,3198.6,0.001]
[1763364823360,0.4738,3198.7,3198.6,0.001]
[1763364823738,0.002,3198.8,3198.6,0.001]
[1763364826550,0.4738,3198.7,3198.6,0.001]
[1763364827057,0.9677,3198.7,3198.6,0.001]
[1763364827443,1.373204,3198.7,3198.6,0.001]
[1763364833774,0.879304,3198.7,3198.6,0.001]
[1763364834153,1.339004,3198.7,3198.6,0.001]
[1763364834672,1.54054225,3198.7,3198.6,0.001]
[1763364834878,2.21492079,3198.7,3198.6,0.001]
[1763364843203,1.75522079,3198.7,3198.6,0.001]
[1763364843498,1.28142079,3198.7,3198.6,0.001]
[1763364843681,1.10134225,3198.7,3198.6,0.001]
[1763364844481,1.56104225,3198.7,3198.6,0.001]
[1763364844800,0.60704225,3198.7,3198.6,0.001]
[1763364844983,1.28142079,3198.7,3198.6,0.001]
[1763364845181,0.69583825,3198.7,3198.6,0.001]
[1763364845696,1.82991679,3198.7,3198.6,0.001]
[1763364846565,2.23542079,3198.7,3198.6,0.001]
[1763364846768,6.6747732,3198.7,3198.6,0.001]
[1763364847001,7.34915174,3198.7,3198.6,0.001]
[1763364847469,7.64216322,3198.7,3198.6,0.001]
[1763364847803,7.76753561,3198.7,3198.6,0.001]
[1763364848308,4.62930584,3198.7,3198.6,0.001]
[1763364848512,3.20247307,3198.7,3198.6,0.001]
[1763364849207,2.06873227,3198.7,3198.6,0.001]
[1763364849616,1.16892827,3198.7,3198.6,0.4686]
[1763364849907,1.16892827,3198.7,3198.6,0.001]
[1763364850109,1.66322827,3198.7,3198.6,0.001]
[1763364850284,2.52843227,3198.7,3198.6,0.001]
[1763364852322,3.37019265,3198.7,3198.6,0.001]
[1763364852913,1.16892827,3198.7,3198.6,0.4686]
[1763364853117,0.96739002,3198.7,3198.6,0.4686]
[1763364853316,0.29301148,3198.7,3198.6,0.9494]
[1763364856199,0.002,3198.8,3198.6,0.9494]
[1763364856406,0.002,3198.8,3198.7,0.9484]
[1763364856809,0.29501148,3198.8,3198.7,0.9484]
[1763364857015,0.002,3198.8,3198.7,0.9484]
[1763364857637,0.29501148,3198.8,3198.7,0.9484]
[1763364857842,0.002,3198.8,3198.7,0.9484]
[1763364857997,0.002,3198.8,3198.7,0.4676]
[1763364858510,0.29501148,3198.8,3198.7,0.4676]
[1763364858713,0.29501148,3198.8,3198.6,0.001]
[1763364858915,0.29301148,3198.7,3198.6,0.001]
[1763364859533,0.29301148,3198.7,3198.6,0.4733]
[1763364859939,0.29301148,3198.7,3198.6,0.9644]
[1763364860313,0.29301148,3198.7,3198.6,0.4733]
[1763364861310,0.78291148,3198.7,3198.6,0.001]
[1763364861610,0.29301148,3198.7,3198.6,0.4616]
[1763364862026,0.25424623,3198.7,3198.6,0.4616]
[1763364862225,0.002,3198.8,3198.6,0.4616]
[1763364863217,0.002,3198.8,3198.6,0.001]
[1763364863414,0.4827,3198.7,3198.6,0.001]
[1763364863620,0.9547,3198.7,3198.6,0.001]
[1763364864643,0.4827,3198.7,3198.6,0.001]
[1763364864852,0.67672827,3198.8,3198.6,0.001]
[1763364865011,0.9547,3198.7,3198.6,0.001]
[1763364866162,1.360204,3198.7,3198.6,0.001]
[1763364866614,2.03493227,3198.7,3198.6,0.001]
[1763364867215,0.67472827,3198.7,3198.6,0.4616]
[1763364867442,0.002,3198.8,3198.6,0.4616]
[1763364867637,0.4827,3198.7,3198.6,0.001]
[1763364868154,0.9547,3198.7,3198.6,0.001]
[1763364869161,1.23121691,3198.7,3198.6,0.001]
[1763364869318,1.90594518,3198.7,3198.6,0.001]
[1763364869520,0.95124518,3198.7,3198.6,0.001]
[1763364869767,0.002,3198.8,3198.6,0.4616]
[1763364870139,0.002,3198.8,3198.6,0.001]
[1763364870646,0.002,3198.8,3198.7,0.4606]
[1763364871052,0.002,3198.8,3198.7,0.9112]
[1763364871560,0.002,3198.8,3198.7,0.4606]
[1763364873944,0.29487122,3198.8,3198.7,0.4606]
[1763364875374,0.29487122,3198.8,3198.7,0.9112]
[1763364876676,0.29487122,3198.8,3198.7,0.4606]
[1763364879763,0.29487122,3198.8,3198.7,4.04700712]
[1763364880079,0.29487122,3198.8,3198.7,4.45190783]
[1763364881186,0.29496589,3198.8,3198.7,1.31610071]
[1763364881350,0.29496589,3198.8,3198.7,0.9112]
[1763364883755,0.29496589,3198.8,3198.7,0.4606]
[1763364884102,0.29496589,3198.8,3198.6,0.001]
[1763364884255,0.29296589,3198.7,3198.6,0.001]
[1763364884679,0.29296589,3198.7,3198.6,0.9122]
[1763364885254,0.29296589,3198.7,3198.6,0.4616]
[1763364885787,0.29296589,3198.7,3198.6,4.04800712]
[1763364886095,0.29296589,3198.7,3198.6,4.45290783]
[1763364888991,0.002,3198.8,3198.6,7.58871495]
[1763364889293,0.002,3198.8,3198.7,2.0449408]
[1763364890771,0.002,3198.8,3198.7,0.9112]
[1763364896276,0.002,3198.8,3198.7,1.20570706]
[1763364896474,0.002,3198.8,3198.7,1.84739974]
[1763364900686,0.002,3198.8,3198.7,2.25290374]
[1763364900889,0.002,3199.5,3199.2,0.405504]
[1763364901090,0.002,3199.5,3199.4,5.70851974]
[1763364901332,0.193,3200.9,3199.4,6.11402374]
[1763364901333,0.29250706,3200.8,3199.4,6.11402374]
[1763364901542,0.29750706,3200.9,3200.5,4.07547894]
[1763364901835,0.005,3200.9,3200.8,4.73547894]
[1763364902348,0.002,3201.2,3200.8,5.19577894]
[1763364902498,0.002,3201.4,3201.2,0.405504]
[1763364902686,0.002,3201.4,3201.3,5.44058294]
[1763364902909,0.002,3201.4,3201.3,5.98464123]
[1763364903640,0.007,3201.9,3201.4,2.0385448]
[1763364903792,0.007,3201.9,3201.8,0.405504]
[1763364903994,0.007,3201.9,3201.8,0.904804]
[1763364904195,0.007,3201.9,3201.8,1.365104]
[1763364904507,0.007,3201.9,3201.8,2.02253637]
[1763364905126,0.002,3202.5,3201.8,2.02253637]
[1763364905429,0.002,3202.5,3202.4,4.66387894]
[1763364905638,0.002,3202.5,3202.4,5.12417894]
[1763364906193,0.002,3202.5,3202.4,5.52968294]
[1763364906395,0.002,3202.5,3202.4,6.09516619]
[1763364907863,0.002,3202.5,3202.4,5.68966219]
[1763364908171,0.002,3202.5,3202.4,6.09516619]
[1763364908963,0.002,3203.2,3202.5,1.5392448]
[1763364909164,0.002,3203.2,3202.8,4.57477894]
[1763364909360,0.002,3203.2,3202.8,5.07828683]
[1763364909581,0.002,3203.2,3203.1,6.23992374]
[1763364909732,0.005,3203.9,3203.1,6.23992374]
[1763364909733,0.005,3203.9,3203.5,4.07547894]
[1763364909932,0.005,3203.9,3203.5,4.57477894]
[1763364910127,0.005,3203.9,3203.5,0.4993]
[1763364910639,0.005,3203.9,3203.5,0.66260408]
[1763364910842,0.9726,3203.6,3202.5,0.405504]
[1763364911045,0.9726,3203.6,3202.8,1.1337408]
[1763364911046,0.4975,3203.6,3202.8,1.1337408]
[1763364911337,0.002,3202.9,3202.8,1.1337408]
[1763364911540,0.002,3202.9,3202.8,5.61472374]
[1763364911737,0.002,3202.9,3202.8,6.11402374]
[1763364911937,0.002,3203.2,3202.9,1.5392448]
[1763364912138,0.002,3203.2,3203.1,6.23992374]
[1763364912338,0.002,3203.2,3203.1,6.70022374]
[1763364912742,0.002,3203.6,3203.3,0.405504]
[1763364912938,0.002,3203.6,3203.5,6.11402374]
[1763364913231,0.002,3203.6,3203.5,7.23175611]
[1763364917241,0.002,3203.6,3203.5,5.70851974]
[1763364917748,0.002,3203.6,3203.5,1.5886408]
[1763364917965,0.002,3203.6,3203.5,5.66411974]
[1763364919373,0.002,3203.6,3203.5,6.14211974]
[1763364919866,0.002,3203.6,3203.5,5.66411974]
[1763364920066,0.002,3203.6,3203.5,6.23053171]
[1763364921774,0.002,3203.6,3203.5,6.71123171]
[1763364922776,0.002,3203.6,3203.5,4.53037894]
[1763364922976,0.914,3203.6,3203.1,4.20137894]
[1763364923165,0.4619,3203.6,3203.2,1.1337408]
[1763364923676,0.914,3203.6,3203.2,1.1337408]
[1763364923839,0.914,3203.6,3202.2,3.12284451]
[1763364923840,0.3502,3203.3,3202.4,0.0891]
[1763364924043,0.4588,3203.2,3202.4,0.55362789]
[1763364924245,0.4588,3203.2,3202.7,1.1337408]
[1763364924873,0.9109,3203.2,3202.5,1.1337408]
[1763364925052,0.9109,3203.2,3202.4,4.8056034]
[1763364925249,0.4521,3203.1,3202.5,0.48056034]
[1763364925461,0.4521,3203.1,3202.0,4.37787551]
[1763364925661,0.4521,3203.1,3202.1,0.4807]
[1763364926063,0.4521,3203.1,3202.1,1.6144408]
[1763364927981,0.4521,3203.1,3202.1,0.4807]
[1763364928276,0.4521,3203.1,3202.1,1.1337408]
[1763364929380,0.4521,3203.1,3202.1,1.68510243]
[1763364930159,0.4541,3203.6,3203.0,0.4506]
[1763364930358,0.4541,3203.6,3203.5,0.4506]
[1763364930359,0.002,3203.6,3203.5,0.4506]
[1763364930591,0.002,3203.6,3203.5,0.856104]
[1763364930749,0.002,3203.6,3203.5,1.336804]
[1763364931080,0.002,3203.6,3203.5,2.00905603]
[1763364933190,0.4619,3203.6,3203.5,1.07775603]
[1763364933394,1.20549036,3203.6,3202.2,4.73267551]
[1763364933581,0.29149036,3203.5,3202.2,4.73267551]
[1763364933782,0.29149036,3203.5,3202.0,0.1269]
[1763364933783,0.29149036,3203.4,3202.3,0.52840371]
[1763364933995,0.4619,3203.6,3202.0,0.001]
[1763364933996,0.6562,3202.4,3202.0,0.001]
[1763364934363,0.3494,3202.1,3202.0,0.001]
[1763364934676,0.6410403,3202.1,3201.7,0.001]
[1763364934857,0.5468,3201.8,3201.7,0.001]
[1763364935062,0.8384403,3201.8,3201.7,0.001]
[1763364935258,1.2905403,3201.8,3201.7,0.001]
[1763364938067,0.4549,3201.6,3201.4,0.001]
[1763364938268,0.4521,3201.7,3201.4,0.001]
[1763364938269,0.6431403,3201.5,3201.4,0.001]
[1763364938798,1.0952403,3201.5,3201.4,0.001]
[1763364940271,0.8036,3201.5,3201.4,0.001]
[1763364942503,0.3515,3201.5,3201.4,0.001]
[1763364942700,0.8036,3201.5,3201.4,0.001]
[1763364945868,0.6504,3201.8,3201.4,0.001]
[1763364946264,0.4521,3201.7,3201.4,0.001]
[1763364946471,0.4599,3201.5,3201.4,0.001]
[1763364947618,0.912,3201.5,3201.4,0.001]
[1763364948719,0.1983,3201.8,3201.4,0.001]
[1763364948873,0.4541,3201.8,3201.4,0.001]
[1763364949214,0.4599,3201.5,3201.4,0.001]
[1763364949371,0.912,3201.5,3201.4,0.001]
[1763364949571,0.002,3201.8,3201.4,0.001]
[1763364949770,0.4541,3201.8,3201.4,0.001]
[1763364950894,0.002,3201.8,3201.4,0.001]
[1763364951605,0.4988,3201.5,3201.4,0.001]
[1763364951806,0.4839,3201.7,3201.4,0.001]
[1763364952007,0.002,3201.8,3201.4,0.001]
[1763364952900,0.4988,3201.5,3201.4,0.001]
[1763364953079,0.9827,3201.5,3201.4,0.001]
[1763364954114,0.4988,3201.5,3201.4,0.001]
[1763364955610,0.9827,3201.5,3201.4,0.001]
[1763364956314,0.4988,3201.5,3201.4,0.001]
[1763364956874,0.9827,3201.5,3201.4,0.001]
[1763364959938,0.4988,3201.5,3201.4,0.001]
[1763364960436,0.002,3201.8,3201.4,0.4917]
[1763364961029,0.002,3201.8,3201.7,0.4907]
[1763364961209,0.002,3201.8,3201.7,1.382604]
[1763364961404,0.002,3201.8,3201.7,2.05943603]
[1763364962324,0.002,3201.8,3201.7,3.19317683]
[1763364962643,0.002,3202.2,3201.8,0.405504]
[1763364962936,0.002,3202.2,3202.1,0.6166]
[1763364963330,0.002,3202.2,3202.1,1.103]
[1763364963537,0.002,3202.2,3202.1,1.75187163]
[1763364965144,0.002,3202.2,3202.1,1.103]
[1763364968545,0.002,3202.2,3202.1,0.6166]
[1763364968868,0.002,3202.2,3202.1,1.103]
[1763364969244,0.002,3202.2,3202.1,1.508504]
[1763364969834,0.002,3202.2,3202.1,1.103]
[1763364970062,0.002,3202.2,3202.1,1.75187163]
[1763364979710,0.002,3202.2,3202.1,2.15737563]
[1763364979877,0.002,3202.2,3202.1,6.41406699]
[1763364980494,0.002,3202.2,3202.1,3.29111643]
[1763364980877,0.002,3202.2,3202.1,6.41406699]
[1763364982425,0.002,3202.5,3202.4,0.405504]
[1763364982610,0.002,3202.5,3202.4,6.94409519]
[1763364982809,0.002,3202.5,3202.4,10.06675319]
[1763364983726,0.002,3202.5,3202.4,6.94409519]
[1763364984426,0.002,3202.5,3202.4,10.06675319]
[1763364984924,0.002,3202.5,3202.4,9.87852122]
[1763364985507,0.002,3202.9,3202.5,1.5392448]
[1763364985808,0.002,3202.9,3202.8,6.08088834]
[1763364985985,0.002,3202.9,3202.8,6.55638834]
[1763364987229,0.002,3202.9,3202.8,6.08088834]
[1763364987821,0.002,3202.9,3202.8,6.55638834]
[1763364988524,0.002,3202.9,3202.8,6.08088834]
[1763364988827,0.002,3202.9,3202.8,6.80315483]
[1763364989127,0.4597,3202.9,3202.8,5.91975083]
[1763364989330,0.4597,3202.9,3202.8,4.06374354]
[1763364989494,0.4597,3202.9,3202.8,5.19748434]
[1763364989711,0.642,3202.9,3202.8,5.19748434]
[1763364989913,1.0959,3202.9,3202.8,1.1337408]
[1763364990546,0.002,3202.9,3202.8,5.67538434]
[1763364990709,0.002,3202.9,3202.8,6.24292277]
[1763364993349,0.002,3202.9,3202.8,5.76502277]
[1763364993514,1.0959,3202.9,3202.8,1.1337408]
[1763364993717,0.4597,3202.9,3202.8,1.1337408]
[1763364994415,0.002,3202.9,3202.8,1.1337408]
[1763364994616,0.002,3202.9,3202.8,1.6116408]
[1763364995852,0.002,3202.9,3202.8,1.1337408]
[1763364996218,0.002,3202.9,3202.8,2.13138923]
[1763364997033,0.002,3202.9,3202.8,1.65348923]
[1763364997250,0.4597,3202.9,3202.8,1.65348923]
[1763364997641,0.002,3202.9,3202.8,2.53689323]
[1763364997830,0.002,3202.9,3202.8,1.65348923]
[1763364998315,0.002,3202.9,3202.8,5.71723277]
[1763364998749,0.9136,3202.9,3202.8,5.19748434]
[1763364998951,1.0959,3202.9,3202.8,5.19748434]
[1763364999950,0.4597,3202.9,3202.8,5.19748434]
[1763365000754,0.642,3202.9,3202.8,1.1337408]
[1763365000945,1.0959,3202.9,3202.8,1.1337408]
[1763365002554,0.642,3202.9,3202.8,1.1337408]
[1763365002732,0.4597,3202.9,3202.8,1.1337408]
[1763365003961,1.0959,3202.9,3202.8,1.1337408]
[1763365005386,1.0959,3202.9,3201.9,4.06374354]
[1763365005569,0.3746,3202.7,3201.9,4.06374354]
[1763365005771,0.4569,3202.1,3201.7,0.001]
[1763365006083,0.4569,3202.1,3202.0,1.1347408]
[1763365006981,0.4539,3202.4,3202.0,1.1347408]
[1763365007186,0.4539,3202.4,3202.0,1.65468923]
[1763365007356,0.4577,3202.1,3202.0,1.65468923]
[1763365009458,0.4539,3202.4,3202.0,1.65468923]
[1763365009786,0.4577,3202.1,3202.0,1.65468923]
[1763365010478,0.9116,3202.1,3202.0,1.65468923]
[1763365011057,0.4577,3202.1,3202.0,1.65468923]
[1763365011262,0.9116,3202.1,3201.7,0.001]
[1763365011585,4.06374354,3202.7,3201.7,0.001]
[1763365011586,0.6401,3201.9,3201.7,0.001]
[1763365011784,0.93261914,3201.9,3201.7,0.001]
[1763365011961,1.38831914,3201.9,3201.7,0.001]
[1763365012293,1.0958,3201.9,3201.7,0.001]
[1763365012464,1.38806148,3201.9,3201.7,0.001]
[1763365013274,1.0958,3201.9,3201.7,0.001]
[1763365015088,0.8274,3201.8,3201.4,0.001]
[1763365015266,0.4569,3201.5,3201.4,0.001]
[1763365015467,0.9126,3201.5,3201.4,0.001]
[1763365018496,0.9282,3201.5,3201.4,0.001]
[1763365019487,0.6381,3201.9,3201.4,0.001]
[1763365019886,0.4725,3201.5,3201.4,0.001]
[1763365021315,0.4557,3201.8,3201.4,0.001]
[1763365021511,0.1982,3202.1,3201.5,1.1337408]
[1763365021712,0.1982,3202.1,3201.5,1.74942923]
[1763365022601,0.1982,3202.4,3202.1,1.1337408]
[1763365022802,0.4557,3202.7,3202.1,1.1337408]
[1763365023000,0.4725,3202.2,3201.8,1.1337408]
[1763365023201,0.4557,3202.8,3201.9,0.51974843]
[1763365023401,0.4725,3202.0,3201.8,1.1337408]
[1763365023604,0.3415,3201.9,3201.8,1.1337408]
[1763365023791,0.3415,3201.9,3201.5,1.1337408]
[1763365023993,0.4712,3201.8,3201.5,1.1337408]
[1763365024203,0.4712,3201.8,3201.5,1.65358923]
[1763365024511,0.4557,3202.2,3201.5,1.65358923]
[1763365026923,0.4557,3202.7,3202.1,0.4731]
[1763365027095,0.4557,3202.5,3201.8,1.1337408]
[1763365028210,0.4557,3202.5,3201.8,1.65348923]
[1763365028509,0.4725,3201.9,3201.4,4.06474354]
[1763365028828,0.7972,3201.8,3201.5,1.1337408]
[1763365030118,0.7972,3201.8,3201.4,0.001]
[1763365030338,0.4712,3201.5,3201.4,0.001]
[1763365030794,0.002,3201.9,3201.4,0.4741]
[1763365031193,0.4577,3201.9,3201.4,0.4741]
[1763365031414,0.002,3201.9,3201.4,0.4741]
[1763365031614,0.002,3201.9,3201.4,0.69262408]
[1763365032124,0.4577,3201.9,3201.4,0.69262408]
[1763365033221,0.4725,3201.5,3201.4,0.001]
[1763365033923,0.4577,3201.9,3201.4,0.4741]
[1763365035236,0.4725,3201.5,3201.4,0.001]
[1763365035806,0.4557,3201.7,3201.4,0.001]
[1763365036433,0.4725,3201.5,3201.4,0.001]
[1763365037440,0.4557,3201.7,3201.4,0.001]
[1763365038153,0.4645,3201.5,3201.4,0.001]
[1763365038353,0.002,3201.9,3201.4,0.001]
[1763365038525,0.4841,3201.9,3201.4,0.4519]
[1763365039647,0.4841,3201.9,3201.8,1.5846408]
[1763365039648,0.002,3201.9,3201.8,1.5846408]
[1763365040228,0.002,3201.9,3201.8,2.0615408]
[1763365041226,0.002,3202.3,3201.9,0.405504]
[1763365041427,0.002,3202.3,3202.2,4.64054354]
[1763365041648,0.5002,3202.3,3201.6,0.405504]
[1763365041838,0.002,3202.3,3202.2,0.5837]
[1763365043562,0.002,3202.3,3202.2,1.0617]
[1763365043868,0.002,3202.3,3202.2,0.5837]
[1763365044048,0.002,3202.3,3202.1,1.1337408]
[1763365044239,0.002,3202.3,3202.2,0.51974843]
[1763365044423,0.002,3202.3,3202.2,0.97754843]
[1763365044927,0.002,3202.3,3202.2,6.84092153]
[1763365046141,0.002,3202.3,3202.2,10.41927856]
[1763365046338,0.002,3202.3,3202.2,10.36927856]
[1763365046678,0.002,3202.3,3202.2,10.49439331]
[1763365047025,0.002,3202.6,3202.2,13.61724634]
[1763365047258,0.002,3202.6,3202.5,0.863304]
[1763365047736,0.002,3202.6,3202.5,1.341304]
[1763365048866,0.002,3202.6,3202.5,5.59760529]
[1763365049228,0.002,3203.6,3202.9,0.913304]
[1763365049429,0.002,3203.6,3203.3,1.5392448]
[1763365049651,0.002,3203.6,3203.5,0.863304]
[1763365049876,0.002,3203.6,3203.5,0.4578]
[1763365050078,0.002,3203.6,3203.5,0.9358]
[1763365050254,0.002,3203.6,3203.5,1.341304]
[1763365050672,0.005,3203.9,3203.6,0.405504]
[1763365050874,0.005,3203.9,3203.8,6.2486771]
[1763365051377,0.005,3203.9,3203.8,6.7266771]
[1763365051557,0.005,3203.9,3203.8,6.2486771]
[1763365053184,0.005,3203.9,3203.8,6.7266771]
[1763365054574,0.002,3204.6,3203.9,1.1337408]
[1763365054774,0.002,3204.6,3203.9,3.07180594]
[1763365055200,0.002,3204.6,3203.9,2.59380594]
[1763365055359,0.4988,3204.6,3203.9,2.59380594]
[1763365055561,0.002,3204.6,3203.9,3.47730994]
[1763365056079,0.002,3204.6,3203.9,6.59850598]
[1763365056570,0.002,3204.6,3203.9,6.72356284]
[1763365056800,0.002,3204.6,3203.9,3.6023668]
[1763365057176,0.002,3204.6,3203.9,6.72356284]
[1763365057374,0.002,3204.6,3203.9,2.99930994]
[1763365057590,0.002,3204.6,3203.9,3.47730994]
[1763365057978,0.4968,3204.5,3203.9,5.71169744]
[1763365058186,0.997,3204.0,3203.9,1.1337408]
[1763365058600,0.5002,3204.0,3203.9,1.1337408]
[1763365058809,0.5002,3204.0,3203.5,4.2516323]
[1763365058810,0.997,3204.0,3203.5,4.2516323]
[1763365059006,0.4572,3203.6,3203.1,4.2516323]
[1763365059321,0.4958,3203.4,3203.1,4.2516323]
[1763365059466,0.1968,3203.6,3203.2,1.1337408]
[1763365059667,0.4968,3203.5,3203.2,1.1337408]
[1763365059865,0.4982,3203.3,3203.2,1.1337408]
[1763365060408,0.995,3203.3,3203.2,1.1337408]
[1763365060702,0.002,3204.0,3203.3,0.405504]
[1763365060864,0.1968,3203.9,3203.4,0.8718801]
[1763365061064,0.6936,3203.9,3203.0,4.2516323]
[1763365061376,0.6936,3203.9,3203.1,1.1337408]
[1763365061683,0.4968,3203.8,3203.1,1.1337408]
[1763365062885,0.4982,3203.2,3203.1,1.1337408]
[1763365063085,0.4982,3203.2,3202.6,4.8757323]
[1763365063300,0.2604,3203.1,3202.7,1.66911403]
[1763365063980,0.1968,3203.9,3202.1,0.005]
[1763365063981,0.6926,3202.8,3202.1,0.005]
[1763365064174,0.7596,3202.7,3202.1,0.005]
[1763365064684,0.4968,3202.6,3202.1,0.005]
[1763365065505,0.4982,3202.2,3202.1,1.1387408]
[1763365065814,0.4968,3202.6,3202.1,1.67787811]
[1763365066611,0.4968,3202.6,3202.4,0.001]
[1763365067112,0.4982,3202.5,3202.4,0.001]
[1763365067291,0.995,3202.5,3202.4,0.001]
[1763365067490,0.995,3202.5,3202.1,0.005]
[1763365067793,0.995,3202.5,3201.9,0.001]
[1763365067794,0.2604,3202.2,3201.9,0.001]
[1763365067984,0.4908,3202.0,3201.9,0.001]
[1763365068390,0.9876,3202.0,3201.9,0.001]
[1763365072215,0.4577,3202.7,3201.9,0.001]
[1763365072452,0.4664,3202.0,3201.9,0.001]
[1763365072952,0.9241,3202.0,3201.9,0.001]
[1763365075460,0.4577,3202.7,3201.9,0.4752]
[1763365075661,0.4577,3202.7,3202.0,0.16089408]
[1763365075960,0.4664,3202.0,3201.9,0.001]
[1763365076969,0.9241,3202.0,3201.9,0.001]
[1763365077625,0.4577,3202.4,3201.9,0.001]
[1763365077966,0.4664,3202.0,3201.9,0.001]
[1763365078761,0.9241,3202.0,3201.9,0.001]
[1763365079631,0.4664,3202.0,3201.9,0.001]
[1763365079825,0.4577,3202.4,3201.9,0.001]
[1763365080469,0.1968,3202.8,3202.1,1.1337408]
[1763365080656,0.1968,3202.8,3202.2,0.66443731]
[1763365080975,0.1996,3202.9,3202.2,0.66443731]
[1763365081144,0.6573,3202.9,3202.0,4.2516323]
[1763365081345,0.6573,3202.9,3202.1,1.1337408]
[1763365081545,0.4664,3202.2,3202.1,1.1337408]
[1763365082076,0.4664,3202.2,3201.9,0.001]
[1763365082677,0.3229,3202.0,3201.9,0.001]
[1763365083182,0.7806,3202.0,3201.9,0.001]
[1763365085949,0.3229,3202.0,3201.9,0.001]
[1763365086378,0.002,3202.4,3201.9,0.4752]
[1763365086566,0.002,3202.4,3201.9,0.001]
[1763365086567,0.4664,3202.0,3201.9,0.001]
[1763365086771,0.9241,3202.0,3201.9,0.001]
[1763365090665,0.6573,3201.9,3201.1,0.00569]
[1763365090869,0.3202,3201.6,3201.1,0.00569]
[1763365091063,0.4649,3201.2,3201.1,0.00569]
[1763365091267,0.9226,3201.2,3201.1,0.00569]
[1763365094161,0.4649,3201.2,3201.1,0.00569]
[1763365095372,0.9226,3201.2,3201.1,0.00569]
[1763365095580,0.1996,3201.9,3201.1,0.00569]
[1763365095581,0.4577,3201.6,3201.1,0.00569]
[1763365096101,0.4577,3201.5,3201.1,0.00569]
[1763365097896,0.1996,3201.9,3201.1,0.00569]
[1763365098099,0.4584,3201.7,3201.1,0.00569]
[1763365099205,0.4727,3201.2,3201.1,0.00569]
[1763365099574,0.4584,3201.4,3201.1,0.00569]
[1763365101187,0.4727,3201.2,3201.1,0.00569]
[1763365101380,0.9311,3201.2,3201.1,0.00569]
[1763365101774,0.4727,3201.2,3201.1,0.00569]
[1763365103280,0.9473,3201.2,3201.1,0.00569]
[1763365104080,0.4727,3201.2,3201.1,0.00569]
[1763365104307,0.4746,3201.5,3201.1,0.00569]
[1763365105017,0.1996,3201.9,3201.1,0.00569]
[1763365105195,0.4746,3201.7,3201.1,0.10079]